fUST/lending_fUST_20250729
["ID","MTS","AMOUNT","RATE_DAILY","PERIOD"]
[375745680,1753728648323,-1869.87,0.00019726,2]
[375745682,1753728648333,-460.0,0.00019726,2]
[375745684,1753728648342,-460.0,0.00019726,2]
[375745686,1753728648351,-460.0,0.00019726,2]
[375745688,1753728648360,-460.0,0.00019726,2]
[375745690,1753728648370,-514.36,0.00019726,2]
[375745692,1753728648379,-460.0,0.00019726,2]
[375745694,1753728648388,-568.64,0.00019726,2]
[375745696,1753728648397,-713.15,0.00019726,2]
[375745698,1753728648406,-460.0,0.00019726,2]
[375745700,1753728648415,-1636.44,0.00019726,2]
[375745702,1753728648424,-460.0,0.00019726,2]
[375745704,1753728648434,-460.0,0.00019726,2]
[375745706,1753728648443,-1983.84,0.00019726,2]
[375745708,1753728648452,-2799.18,0.00019726,2]
[375745710,1753728648462,-2799.18,0.00019726,2]
[375745712,1753728648471,-643.74,0.00019726,2]
[375745714,1753728648480,-510.82,0.00019726,2]
[375745716,1753728648490,-1672.09,0.00019726,2]
[375745718,1753728648499,-460.0,0.00019726,2]
[375745720,1753728648508,-460.0,0.00019726,2]
[375745722,1753728648517,-6580.44,0.00019726,2]
[375745724,1753728648527,-605.7,0.00019726,2]
[375745725,1753728648536,-460.0,0.00019726,2]
[375745727,1753728648545,-730.72,0.00019726,2]
[375745729,1753728648555,-288.17094997,0.00019726,2]
[375745731,1753728648564,-460.0,0.00019726,2]
[375745733,1753728648574,-460.0,0.00019726,2]
[375745735,1753728648584,-460.0,0.00019726,2]
[375745737,1753728648594,-460.0,0.00019726,2]
[375745740,1753728648604,-460.0,0.00019726,2]
[375745741,1753728648613,-460.0,0.00019726,2]
[375745743,1753728648622,-393.82266541,0.00019726,2]
[375745746,1753728648632,-460.0,0.00019726,2]
[375745748,1753728648641,-460.0,0.00019726,2]
[375745750,1753728648651,-460.0,0.00019726,2]
[375745752,1753728648660,-460.0,0.00019726,2]
[375745754,1753728648670,-460.0,0.00019726,2]
[375745756,1753728648679,-516.51,0.00019726,2]
[375745757,1753728648688,-460.0,0.00019726,2]
[375745759,1753728648697,-460.0,0.00019726,2]
[375745761,1753728648707,-726.82,0.00019726,2]
[375745763,1753728648716,-460.0,0.00019726,2]
[375745765,1753728648726,-460.0,0.00019726,2]
[375745767,1753728648735,-460.0,0.00019726,2]
[375745769,1753728648744,-892.16,0.00019726,2]
[375745771,1753728648754,-460.0,0.00019726,2]
[375745773,1753728648764,-460.0,0.00019726,2]
[375745775,1753728648773,-500.0,0.00019773,2]
[375745777,1753728648783,-500.0,0.00019773,2]
[375745779,1753728648792,-500.0,0.00019821,2]
[375745781,1753728648802,-1000.0,0.00019821,2]
[375745783,1753728648811,-500.0,0.00019973,2]
[375745785,1753728648820,-100000.0,0.0001999,2]
[375745787,1753728648830,-607.68223274,0.0002,2]
[375745789,1753728648840,-460.0,0.0002,2]
[375745791,1753728648849,-460.0,0.0002,2]
[375745793,1753728648858,-460.0,0.0002,2]
[375745795,1753728648868,-460.0,0.0002,2]
[375745797,1753728648877,-460.0,0.0002,2]
[375745799,1753728648887,-460.0,0.0002,2]
[375745801,1753728648897,-460.0,0.0002,2]
[375745803,1753728648907,-460.0,0.0002,2]
[375745805,1753728648916,-460.0,0.0002,2]
[375745807,1753728648926,-460.0,0.0002,2]
[375745809,1753728648935,-460.0,0.0002,2]
[375745811,1753728648944,-460.0,0.0002,2]
[375745813,1753728648955,-460.0,0.0002,2]
[375745814,1753728648964,-460.0,0.0002,2]
[375745816,1753728648973,-238.96923298,0.0002,2]
[375745818,1753728648983,-460.0,0.0002,2]
[375745820,1753728648993,-539.07229631,0.0002,2]
[375745822,1753728649002,-529.63,0.0002,2]
[375745824,1753728649014,-460.0,0.0002,2]
[375745826,1753728649023,-460.0,0.0002,2]
[375745828,1753728649033,-460.0,0.0002,2]
[375745830,1753728649042,-460.0,0.0002,2]
[375745832,1753728649053,-460.0,0.0002,2]
[375745834,1753728649062,-477.75046505,0.0002,2]
[375745836,1753728649071,-460.0,0.0002,2]
[375745838,1753728649081,-459.96403013,0.0002,2]
[375745839,1753728649091,-669.61,0.0002,2]
[375745841,1753728649101,-460.0,0.0002,2]
[375745843,1753728649110,-460.0,0.0002,2]
[375745845,1753728649120,-460.0,0.0002,2]
[375745848,1753728649130,-460.0,0.0002,2]
[375745850,1753728649139,-227.98209117,0.0002,2]
[375745851,1753728649149,-460.0,0.0002,2]
[375745853,1753728649158,-460.0,0.0002,2]
[375745855,1753728649167,-469.36161508,0.0002,2]
[375745857,1753728649177,-460.0,0.0002,2]
[375745859,1753728649186,-460.0,0.0002,2]
[375745861,1753728649196,-460.0,0.0002,2]
[375745863,1753728649205,-460.0,0.0002,2]
[375745865,1753728649214,-460.0,0.0002,2]
[375745867,1753728649223,-460.0,0.0002,2]
[375745869,1753728649232,-460.0,0.0002,2]
[375745871,1753728649242,-460.0,0.0002,2]
[375745873,1753728649251,-460.0,0.0002,2]
[375745875,1753728649260,-460.0,0.0002,2]
[375745877,1753728649269,-460.0,0.0002,2]
[375745879,1753728649278,-460.0,0.0002,2]
[375745881,1753728649288,-460.0,0.0002,2]
[375745883,1753728649297,-460.0,0.0002,2]
[375745885,1753728649307,-460.0,0.0002,2]
[375745887,1753728649316,-460.0,0.0002,2]
[375745889,1753728649325,-460.0,0.0002,2]
[375745891,1753728649334,-460.0,0.0002,2]
[375745893,1753728649344,-4529.8,0.0002,2]
[375745895,1753728649353,-460.0,0.0002,2]
[375745896,1753728649362,-653.77,0.0002,2]
[375745898,1753728649371,-460.0,0.0002,2]
[375745900,1753728649381,-460.0,0.0002,2]
[375745902,1753728649390,-460.0,0.0002,2]
[375745905,1753728649400,-460.0,0.0002,2]
[375745906,1753728649409,-1040.96,0.0002,2]
[375745908,1753728649418,-460.0,0.0002,2]
[375745910,1753728649427,-460.0,0.0002,2]
[375745912,1753728649436,-176.18213583,0.0002,2]
[375745914,1753728649446,-460.0,0.0002,2]
[375745916,1753728649456,-460.0,0.0002,2]
[375745918,1753728649467,-460.0,0.0002,2]
[375745920,1753728649476,-187.02819403,0.0002,2]
[375745922,1753728649486,-460.0,0.0002,2]
[375745924,1753728649496,-737.77,0.0002,2]
[375745926,1753728649506,-460.0,0.0002,2]
[375745928,1753728649516,-460.0,0.0002,2]
[375745930,1753728649525,-460.0,0.0002,2]
[375745932,1753728649535,-460.0,0.0002,2]
[375745934,1753728649544,-889.54,0.0002,2]
[375745936,1753728649553,-1631.04,0.0002,2]
[375745938,1753728649562,-563.12805676,0.0002,2]
[375745940,1753728649571,-663.68,0.0002,2]
[375745942,1753728649580,-460.0,0.0002,2]
[375745944,1753728649591,-460.0,0.0002,2]
[375745946,1753728649601,-309.65375379,0.0002,2]
[375745959,1753728649722,-460.0,0.0002,2]
[375745961,1753728649732,-516.35,0.0002,2]
[375745963,1753728649742,-479.16,0.0002,2]
[375745965,1753728649751,-460.0,0.0002,2]
[375745967,1753728649760,-460.0,0.0002,2]
[375745969,1753728649769,-460.0,0.0002,2]
[375745971,1753728649779,-460.0,0.0002,2]
[375745973,1753728649788,-165.37646231,0.0002,2]
[375745974,1753728649797,-571.78,0.0002,2]
[375745976,1753728649806,-460.0,0.0002,2]
[375745978,1753728649816,-460.0,0.0002,2]
[375745980,1753728649825,-460.0,0.0002,2]
[375745982,1753728649836,-169.60272768,0.0002,2]
[375745984,1753728649846,-460.0,0.0002,2]
[375745986,1753728649855,-460.0,0.0002,2]
[375745988,1753728649867,-460.0,0.0002,2]
[375745990,1753728649877,-460.0,0.0002,2]
[375745992,1753728649887,-460.0,0.0002,2]
[375745994,1753728649897,-460.0,0.0002,2]
[375745996,1753728649907,-460.0,0.0002,2]
[375745998,1753728649917,-2206.83,0.0002,2]
[375746000,1753728649927,-460.0,0.0002,2]
[375746002,1753728649936,-460.0,0.0002,2]
[375746004,1753728649946,-460.0,0.0002,2]
[375746006,1753728649956,-2652.51,0.0002,2]
[375746007,1753728649966,-499.40723209,0.0002,2]
[375746009,1753728649976,-586.34,0.0002,2]
[375746011,1753728649985,-460.0,0.0002,2]
[375746012,1753728649995,-2020.25,0.0002,2]
[375746013,1753728650009,-460.0,0.0002,2]
[375746014,1753728650018,-460.0,0.0002,2]
[375746015,1753728650028,-460.0,0.0002,2]
[375746016,1753728650037,-460.0,0.0002,2]
[375746017,1753728650049,-460.0,0.0002,2]
[375746018,1753728650059,-460.0,0.0002,2]
[375746019,1753728650068,-721.07,0.0002,2]
[375746020,1753728650078,-460.0,0.0002,2]
[375746021,1753728650089,-1809.26,0.0002,2]
[375746022,1753728650099,-189.14735661,0.0002,2]
[375746023,1753728650108,-578.54,0.0002,2]
[375746024,1753728650118,-3123.56,0.0002,2]
[375746025,1753728650127,-460.0,0.0002,2]
[375746026,1753728650136,-460.0,0.0002,2]
[375746027,1753728650147,-460.0,0.0002,2]
[375746028,1753728650156,-460.0,0.0002,2]
[375746029,1753728650165,-460.0,0.0002,2]
[375746030,1753728650175,-460.0,0.0002,2]
[375746031,1753728650184,-460.0,0.0002,2]
[375746032,1753728650193,-460.0,0.0002,2]
[375746033,1753728650202,-502.28,0.0002,2]
[375746034,1753728650211,-460.0,0.0002,2]
[375746036,1753728650220,-460.0,0.0002,2]
[375746038,1753728650230,-1869.87,0.0002,2]
[375746040,1753728650239,-460.0,0.0002,2]
[375746042,1753728650248,-460.0,0.0002,2]
[375746044,1753728650258,-460.0,0.0002,2]
[375746046,1753728650267,-514.36,0.0002,2]
[375746048,1753728650276,-406.1492004,0.0002,2]
[375746050,1753728650285,-568.64,0.0002,2]
[375746052,1753728650295,-713.15,0.0002,2]
[375746054,1753728650304,-165.9268359,0.0002,2]
[375746056,1753728650314,-1636.44,0.0002,2]
[375746058,1753728650323,-460.0,0.0002,2]
[375746060,1753728650335,-460.0,0.0002,2]
[375746062,1753728650344,-1983.84,0.0002,2]
[375746064,1753728650353,-2799.18,0.0002,2]
[375746066,1753728650363,-2799.18,0.0002,2]
[375746068,1753728650372,-643.74,0.0002,2]
[375746070,1753728650382,-510.82,0.0002,2]
[375746072,1753728650392,-1672.09,0.0002,2]
[375746074,1753728650401,-460.0,0.0002,2]
[375746076,1753728650410,-6580.44,0.0002,2]
[375746078,1753728650420,-605.7,0.0002,2]
[375746080,1753728650429,-730.72,0.0002,2]
[375746082,1753728650438,-609.28620817,0.0002,2]
[375746084,1753728650448,-460.0,0.0002,2]
[375746086,1753728650457,-460.0,0.0002,2]
[375746088,1753728650467,-460.0,0.0002,2]
[375746090,1753728650476,-460.0,0.0002,2]
[375746091,1753728650486,-460.0,0.0002,2]
[375746093,1753728650495,-516.51,0.0002,2]
[375746095,1753728650504,-460.0,0.0002,2]
[375746097,1753728650514,-460.0,0.0002,2]
[375746099,1753728650523,-726.82,0.0002,2]
[375746101,1753728650532,-552.63758959,0.0002,2]
[375746103,1753728650541,-460.0,0.0002,2]
[375746105,1753728650551,-460.0,0.0002,2]
[375746107,1753728650560,-892.16,0.0002,2]
[375746109,1753728650569,-460.0,0.0002,2]
[375746111,1753728650578,-385.84525188,0.0002011,2]
[375746113,1753728650591,-384.277481,0.00020187,2]
[375746115,1753728650601,-3006.81739436,0.00020251,2]
[375746117,1753728650611,-460.0,0.00020273,2]
[375746119,1753728650621,-460.0,0.00020273,2]
[375746121,1753728650631,-460.0,0.00020273,2]
[375746123,1753728650641,-460.0,0.00020273,2]
[375746125,1753728650651,-460.0,0.00020273,2]
[375746127,1753728650662,-437.94787108,0.00020273,2]
[375746129,1753728650672,-460.0,0.00020273,2]
[375746131,1753728650681,-460.0,0.00020273,2]
[375746133,1753728650691,-229.03170315,0.00020273,2]
[375746135,1753728650700,-460.0,0.00020273,2]
[375746137,1753728650710,-460.0,0.00020273,2]
[375746139,1753728650720,-460.0,0.00020273,2]
[375746141,1753728650729,-460.0,0.00020273,2]
[375746143,1753728650739,-529.63,0.00020273,2]
[375746145,1753728650748,-460.0,0.00020273,2]
[375746147,1753728650758,-460.0,0.00020273,2]
[375746149,1753728650767,-460.0,0.00020273,2]
[375746151,1753728650777,-460.0,0.00020273,2]
[375746153,1753728650787,-460.0,0.00020273,2]
[375746155,1753728650797,-460.0,0.00020273,2]
[375746157,1753728650806,-669.61,0.00020273,2]
[375746159,1753728650815,-344.02726628,0.00020273,2]
[375746160,1753728650825,-460.0,0.00020273,2]
[375746162,1753728650834,-460.0,0.00020273,2]
[375746164,1753728650847,-211.2777497,0.00020273,2]
[375746166,1753728650856,-460.0,0.00020273,2]
[375746168,1753728650866,-460.0,0.00020273,2]
[375746170,1753728650875,-460.0,0.00020273,2]
[375746172,1753728650885,-460.0,0.00020273,2]
[375746174,1753728650895,-460.0,0.00020273,2]
[375746176,1753728650909,-460.0,0.00020273,2]
[375746178,1753728650922,-460.0,0.00020273,2]
[375746180,1753728650932,-460.0,0.00020273,2]
[375746182,1753728650942,-460.0,0.00020273,2]
[375746184,1753728650951,-460.0,0.00020273,2]
[375746186,1753728650960,-460.0,0.00020273,2]
[375746187,1753728650969,-460.0,0.00020273,2]
[375746189,1753728650979,-460.0,0.00020273,2]
[375746191,1753728650989,-460.0,0.00020273,2]
[375746193,1753728650998,-460.0,0.00020273,2]
[375746196,1753728651012,-4529.8,0.00020273,2]
[375746198,1753728651022,-460.0,0.00020273,2]
[375746199,1753728651031,-653.77,0.00020273,2]
[375746201,1753728651043,-460.0,0.00020273,2]
[375746203,1753728651052,-460.0,0.00020273,2]
[375746205,1753728651062,-460.0,0.00020273,2]
[375746207,1753728651071,-1040.96,0.00020273,2]
[375746209,1753728651082,-460.0,0.00020273,2]
[375746211,1753728651096,-460.0,0.00020273,2]
[375746213,1753728651105,-460.0,0.00020273,2]
[375746215,1753728651115,-505.89770332,0.00020273,2]
[375746217,1753728651124,-510.74391998,0.00020273,2]
[375746219,1753728651133,-460.0,0.00020273,2]
[375746221,1753728651142,-737.77,0.00020273,2]
[375746223,1753728651151,-460.0,0.00020273,2]
[375746225,1753728651160,-460.0,0.00020273,2]
[375746227,1753728651170,-460.0,0.00020273,2]
[375746229,1753728651180,-460.0,0.00020273,2]
[375746231,1753728651189,-889.54,0.00020273,2]
[375746233,1753728651198,-1631.04,0.00020273,2]
[375746235,1753728651208,-663.68,0.00020273,2]
[375746237,1753728651217,-460.0,0.00020273,2]
[375746239,1753728651226,-460.0,0.00020273,2]
[375746241,1753728651235,-460.0,0.00020273,2]
[375746243,1753728651244,-460.0,0.00020273,2]
[375746245,1753728651253,-460.0,0.00020273,2]
[375746247,1753728651262,-460.0,0.00020273,2]
[375746248,1753728651271,-571.78,0.00020273,2]
[375746250,1753728651281,-460.0,0.00020273,2]
[375746252,1753728651290,-460.0,0.00020273,2]
[375746254,1753728651299,-460.0,0.00020273,2]
[375746256,1753728651308,-460.0,0.00020273,2]
[375746258,1753728651317,-460.0,0.00020273,2]
[375746260,1753728651326,-460.0,0.00020273,2]
[375746262,1753728651337,-2206.83,0.00020273,2]
[375746264,1753728651346,-460.0,0.00020273,2]
[375746266,1753728651355,-460.0,0.00020273,2]
[375746268,1753728651365,-460.0,0.00020273,2]
[375746270,1753728651374,-460.0,0.00020273,2]
[375746272,1753728651383,-2652.51,0.00020273,2]
[375746274,1753728651392,-586.34,0.00020273,2]
[375746276,1753728651402,-460.0,0.00020273,2]
[375746278,1753728651411,-2020.25,0.00020273,2]
[375746280,1753728651421,-460.0,0.00020273,2]
[375746282,1753728651430,-460.0,0.00020273,2]
[375746284,1753728651439,-460.0,0.00020273,2]
[375746286,1753728651454,-460.0,0.00020273,2]
[375746288,1753728651463,-721.07,0.00020273,2]
[375746290,1753728651472,-460.0,0.00020273,2]
[375746292,1753728651483,-1809.26,0.00020273,2]
[375746294,1753728651492,-578.54,0.00020273,2]
[375746296,1753728651501,-3123.56,0.00020273,2]
[375746298,1753728651510,-460.0,0.00020273,2]
[375746300,1753728651519,-460.0,0.00020273,2]
[375746302,1753728651529,-460.0,0.00020273,2]
[375746304,1753728651539,-460.0,0.00020273,2]
[375746306,1753728651548,-460.0,0.00020273,2]
[375746308,1753728651557,-460.0,0.00020273,2]
[375746310,1753728651566,-460.0,0.00020273,2]
[375746312,1753728651576,-502.28,0.00020273,2]
[375746313,1753728651585,-460.0,0.00020273,2]
[375746315,1753728651595,-460.0,0.00020273,2]
[375746317,1753728651604,-1869.87,0.00020273,2]
[375746319,1753728651613,-460.0,0.00020273,2]
[375746321,1753728651622,-460.0,0.00020273,2]
[375746323,1753728651631,-460.0,0.00020273,2]
[375746325,1753728651640,-514.36,0.00020273,2]
[375746327,1753728651649,-568.64,0.00020273,2]
[375746329,1753728651658,-713.15,0.00020273,2]
[375746331,1753728651667,-1636.44,0.00020273,2]
[375746333,1753728651676,-460.0,0.00020273,2]
[375746335,1753728651685,-460.0,0.00020273,2]
[375746337,1753728651694,-1983.84,0.00020273,2]
[375746339,1753728651703,-2799.18,0.00020273,2]
[375746340,1753728651712,-2799.18,0.00020273,2]
[375746342,1753728651721,-643.74,0.00020273,2]
[375746344,1753728651731,-510.82,0.00020273,2]
[375746346,1753728651740,-1672.09,0.00020273,2]
[375746348,1753728651749,-460.0,0.00020273,2]
[375746350,1753728651758,-6580.44,0.00020273,2]
[375746352,1753728651767,-605.7,0.00020273,2]
[375746354,1753728651777,-730.72,0.00020273,2]
[375746356,1753728651786,-460.0,0.00020273,2]
[375746358,1753728651795,-470.81920337,0.00020273,2]
[375746360,1753728651805,-460.0,0.00020273,2]
[375746362,1753728651815,-460.0,0.00020273,2]
[375746364,1753728651824,-460.0,0.00020273,2]
[375746366,1753728651833,-516.51,0.00020273,2]
[375746368,1753728651845,-460.0,0.00020273,2]
[375746370,1753728651854,-460.0,0.00020273,2]
[375746372,1753728651864,-726.82,0.00020273,2]
[375746374,1753728651873,-460.0,0.00020273,2]
[375746376,1753728651882,-460.0,0.00020273,2]
[375746378,1753728651892,-892.16,0.00020273,2]
[375746380,1753728651902,-460.0,0.00020273,2]
[375746382,1753728651911,-1000.0,0.00020321,2]
[375746384,1753728651920,-1500.0,0.00020368,2]
[375746386,1753728651930,-160.0,0.00020441,2]
[375746388,1753728651939,-1000.0,0.00020521,2]
[375746390,1753728651949,-460.0,0.00020547,2]
[375746392,1753728651959,-460.0,0.00020547,2]
[375746394,1753728651968,-460.0,0.00020547,2]
[375746396,1753728651978,-460.0,0.00020547,2]
[375746398,1753728651988,-460.0,0.00020547,2]
[375746400,1753728651997,-460.0,0.00020547,2]
[375746402,1753728652010,-460.0,0.00020547,2]
[375746404,1753728652019,-460.0,0.00020547,2]
[375746406,1753728652029,-529.63,0.00020547,2]
[375746408,1753728652039,-355.95173932,0.00020547,2]
[375746410,1753728652049,-460.0,0.00020547,2]
[375746412,1753728652063,-460.0,0.00020547,2]
[375746414,1753728652082,-460.0,0.00020547,2]
[375746416,1753728652101,-460.0,0.00020547,2]
[375746418,1753728652111,-462.93363414,0.00020547,2]
[375746420,1753728652120,-669.61,0.00020547,2]
[375746422,1753728652130,-460.0,0.00020547,2]
[375746424,1753728652139,-460.0,0.00020547,2]
[375746426,1753728652149,-460.0,0.00020547,2]
[375746428,1753728652158,-460.0,0.00020547,2]
[375746430,1753728652167,-460.0,0.00020547,2]
[375746432,1753728652177,-460.0,0.00020547,2]
[375746434,1753728652186,-460.0,0.00020547,2]
[375746436,1753728652195,-460.0,0.00020547,2]
[375746438,1753728652204,-460.0,0.00020547,2]
[375746440,1753728652214,-460.0,0.00020547,2]
[375746441,1753728652223,-460.0,0.00020547,2]
[375746444,1753728652232,-460.0,0.00020547,2]
[375746445,1753728652242,-460.0,0.00020547,2]
[375746447,1753728652251,-460.0,0.00020547,2]
[375746449,1753728652260,-460.0,0.00020547,2]
[375746461,1753728652375,-460.0,0.00020547,2]
[375746462,1753728652385,-4529.8,0.00020547,2]
[375746463,1753728652394,-653.77,0.00020547,2]
[375746464,1753728652419,-460.0,0.00020547,2]
[375746465,1753728652429,-460.0,0.00020547,2]
[375746466,1753728652438,-1040.96,0.00020547,2]
[375746467,1753728652448,-460.0,0.00020547,2]
[375746468,1753728652458,-460.0,0.00020547,2]
[375746469,1753728652467,-460.0,0.00020547,2]
[375746470,1753728652476,-460.0,0.00020547,2]
[375746471,1753728652485,-737.77,0.00020547,2]
[375746472,1753728652494,-460.0,0.00020547,2]
[375746473,1753728652504,-460.0,0.00020547,2]
[375746474,1753728652513,-460.0,0.00020547,2]
[375746475,1753728652522,-460.0,0.00020547,2]
[375746476,1753728652532,-889.54,0.00020547,2]
[375746477,1753728652541,-1631.04,0.00020547,2]
[375746478,1753728652551,-663.68,0.00020547,2]
[375746479,1753728652561,-460.0,0.00020547,2]
[375746480,1753728652571,-460.0,0.00020547,2]
[375746481,1753728652580,-460.0,0.00020547,2]
[375746482,1753728652590,-460.0,0.00020547,2]
[375746483,1753728652600,-460.0,0.00020547,2]
[375746484,1753728652609,-460.0,0.00020547,2]
[375746485,1753728652618,-571.78,0.00020547,2]
[375746486,1753728652627,-460.0,0.00020547,2]
[375746487,1753728652637,-460.0,0.00020547,2]
[375746489,1753728652646,-460.0,0.00020547,2]
[375746490,1753728652655,-460.0,0.00020547,2]
[375746491,1753728652664,-460.0,0.00020547,2]
[375746492,1753728652673,-2206.83,0.00020547,2]
[375746493,1753728652683,-460.0,0.00020547,2]
[375746494,1753728652692,-460.0,0.00020547,2]
[375746495,1753728652701,-460.0,0.00020547,2]
[375746496,1753728652711,-2652.51,0.00020547,2]
[375746497,1753728652720,-586.34,0.00020547,2]
[375746498,1753728652729,-460.0,0.00020547,2]
[375746500,1753728652738,-2020.25,0.00020547,2]
[375746502,1753728652748,-460.0,0.00020547,2]
[375746504,1753728652757,-460.0,0.00020547,2]
[375746506,1753728652766,-460.0,0.00020547,2]
[375746508,1753728652775,-460.0,0.00020547,2]
[375746510,1753728652785,-314.81262896,0.00020547,2]
[375746512,1753728652794,-721.07,0.00020547,2]
[375746514,1753728652804,-1809.26,0.00020547,2]
[375746515,1753728652813,-578.54,0.00020547,2]
[375746518,1753728652823,-3123.56,0.00020547,2]
[375746519,1753728652832,-460.0,0.00020547,2]
[375746522,1753728652844,-460.0,0.00020547,2]
[375746524,1753728652853,-460.0,0.00020547,2]
[375746526,1753728652863,-460.0,0.00020547,2]
[375746527,1753728652873,-460.0,0.00020547,2]
[375746530,1753728652882,-460.0,0.00020547,2]
[375746531,1753728652892,-270.51133731,0.00020547,2]
[375746533,1753728652901,-502.28,0.00020547,2]
[375746535,1753728652910,-460.0,0.00020547,2]
[375746537,1753728652920,-460.0,0.00020547,2]
[375746539,1753728652929,-1869.87,0.00020547,2]
[375746541,1753728652940,-460.0,0.00020547,2]
[375746543,1753728652949,-460.0,0.00020547,2]
[375746545,1753728652959,-514.36,0.00020547,2]
[375746547,1753728652968,-568.64,0.00020547,2]
[375746549,1753728652977,-713.15,0.00020547,2]
[375746551,1753728652986,-1636.44,0.00020547,2]
[375746553,1753728652996,-460.0,0.00020547,2]
[375746555,1753728653008,-460.0,0.00020547,2]
[375746557,1753728653018,-1983.84,0.00020547,2]
[375746559,1753728653027,-2799.18,0.00020547,2]
[375746561,1753728653036,-2799.18,0.00020547,2]
[375746563,1753728653046,-643.74,0.00020547,2]
[375746565,1753728653059,-510.82,0.00020547,2]
[375746567,1753728653068,-1672.09,0.00020547,2]
[375746569,1753728653080,-460.0,0.00020547,2]
[375746571,1753728653091,-6580.44,0.00020547,2]
[375746573,1753728653100,-605.7,0.00020547,2]
[375746575,1753728653109,-730.72,0.00020547,2]
[375746577,1753728653119,-460.0,0.00020547,2]
[375746579,1753728653128,-460.0,0.00020547,2]
[375746581,1753728653138,-460.0,0.00020547,2]
[375746583,1753728653147,-460.0,0.00020547,2]
[375746585,1753728653156,-516.51,0.00020547,2]
[375746587,1753728653165,-460.0,0.00020547,2]
[375746589,1753728653174,-460.0,0.00020547,2]
[375746591,1753728653184,-460.0,0.00020547,2]
[375746592,1753728653193,-726.82,0.00020547,2]
[375746595,1753728653204,-460.0,0.00020547,2]
[375746596,1753728653213,-892.16,0.00020547,2]
[375746598,1753728653222,-460.0,0.00020547,2]
[375746600,1753728653232,-3006.81739436,0.0002079,2]
[375746603,1753728653243,-495.6,0.000208,3]
[375746604,1753728653252,-500.0,0.000208,2]
[375746606,1753728653261,-526.58819812,0.0002081,2]
[375746608,1753728653270,-12634.73134317,0.0002081,2]
[375746610,1753728653280,-160.0,0.0002081,2]
[375746612,1753728653289,-160.0,0.0002081,2]
[375746614,1753728653299,-231.34820253,0.0002081,2]
[375746616,1753728653308,-216.06083566,0.0002081,2]
[375746618,1753728653316,-160.0,0.0002081,2]
[375746620,1753728653326,-160.0,0.0002081,2]
[375746622,1753728653335,-840.90880427,0.0002081,2]
[375746624,1753728653346,-454.6043428,0.0002081,2]
[375746626,1753728653356,-160.0,0.0002081,2]